fUST/lending_fUST_20260127
["ID","MTS","AMOUNT","RATE_DAILY","PERIOD"]
[403681676,1769473407328,500.0,0.00034595,120]
[403681677,1769473407937,500.0,0.00034595,120]
[403681678,1769473408196,500.0,0.00034595,120]
[403681679,1769473408686,500.0,0.00034595,120]
[403681680,1769473409676,500.0,0.00034595,120]
[403681681,1769473409946,314.92734797,0.00034595,120]
[403681682,1769473412170,321.82960278,0.00034595,120]
[403681683,1769473413494,500.0,0.00034595,120]
[403681684,1769473422145,542.42,0.00034595,120]
[403681685,1769473426054,500.0,0.00034595,120]
[403681686,1769473426611,500.0,0.00034595,120]
[403681687,1769473426846,500.0,0.00034595,120]
[403681688,1769473428592,500.0,0.00034595,120]
[403681689,1769473441823,500.0,0.00034595,120]
[403681690,1769473442091,455.62,0.00034595,120]
[403681691,1769473443278,500.0,0.00034595,120]
[403681692,1769473446942,500.0,0.00034595,120]
[403681693,1769473447184,500.0,0.00034595,120]
[403681694,1769473453931,500.0,0.00034595,120]
[403681695,1769473454543,500.0,0.00034595,120]
[403681696,1769473467518,500.0,0.00034595,120]
[403681697,1769473467766,500.0,0.00034595,120]
[403681698,1769473471015,500.0,0.00034595,120]
[403681699,1769473471271,500.0,0.00034595,120]
[403681700,1769473474257,500.0,0.00034595,120]
[403681701,1769473481416,500.0,0.00034595,120]
[403681702,1769473481710,500.0,0.00034595,120]
[403681703,1769473485683,500.0,0.00034595,120]
[403681704,1769473485928,500.0,0.00034595,120]
[403681705,1769473488137,500.0,0.00034595,120]
[403681706,1769473488362,500.0,0.00034595,120]
[403681707,1769473491551,500.0,0.00034595,120]
[403681708,1769473491794,500.0,0.00034595,120]
[403681709,1769473492860,565.18574673,0.00034595,120]
[403681710,1769473495055,500.0,0.00034595,120]
[403681711,1769473495292,500.0,0.00034595,120]
[403681712,1769473497190,500.0,0.00034595,120]
[403681713,1769473497435,500.0,0.00034595,120]
[403681714,1769473500313,500.0,0.00034595,120]
[403681715,1769473500563,500.0,0.00034595,120]
[403681716,1769473500839,500.0,0.00034595,120]
[403681717,1769473501103,500.0,0.00034595,120]
[403681721,1769473525582,500.0,0.00034595,120]
[403681722,1769473525843,500.0,0.00034595,120]
[403681723,1769473528469,500.0,0.00034595,120]
[403681727,1769473528691,500.0,0.00034595,120]
[403681729,1769473531596,500.0,0.00034595,120]
[403681730,1769473531862,586.40972697,0.00034595,120]
[403681731,1769473535346,-170.675,0.00012419,2]
[403681732,1769473535368,-11.77255838,0.00012545,2]
[403681733,1769473535495,500.0,0.00034595,120]
[403681734,1769473535756,500.0,0.00034595,120]
[403681735,1769473540610,580.18602605,0.00034595,120]
[403681736,1769473542278,500.0,0.00034595,120]
[403681737,1769473542515,500.0,0.00034595,120]
[403681738,1769473543765,500.0,0.00034595,120]
[403681739,1769473544016,500.0,0.00034595,120]
[403681740,1769473550360,500.0,0.00034595,120]
[403681741,1769473550477,500.0,0.00034595,120]
[403681742,1769473550725,500.0,0.00034595,120]
[403681743,1769473551141,500.0,0.00034595,120]
[403681744,1769473551376,500.0,0.00034595,120]
[403681745,1769473553983,500.0,0.00034595,120]
[403681746,1769473554239,500.0,0.00034595,120]
[403681747,1769473555987,500.0,0.00034595,120]
[403681748,1769473556229,500.0,0.00034595,120]
[403681749,1769473557995,500.0,0.00034595,120]
[403681750,1769473558260,500.0,0.00034595,120]
[403681751,1769473564343,500.0,0.00034595,120]
[403681752,1769473564636,500.0,0.00034595,120]
[403681757,1769473567620,500.0,0.00034595,120]
[403681758,1769473567926,500.0,0.00034595,120]
[403681759,1769473573865,500.0,0.00034595,120]
[403681760,1769473574108,500.0,0.00034595,120]
[403681761,1769473579484,157.74650342,0.00034595,120]
[403681762,1769473580683,500.0,0.00034595,120]
[403681763,1769473580906,500.0,0.00034595,120]
[403681764,1769473584117,500.0,0.00034595,120]
[403681765,1769473584365,500.0,0.00034595,120]
[403681766,1769473586576,500.0,0.00034595,120]
[403681767,1769473589370,500.0,0.00034595,120]
[403681768,1769473589626,500.0,0.00034595,120]
[403681769,1769473592441,500.0,0.00034595,120]
[403681770,1769473600992,500.0,0.00034595,120]
[403681771,1769473601222,500.0,0.00034595,120]
[403681772,1769473601743,500.0,0.00034595,120]
[403681773,1769473601973,500.0,0.00034595,120]
[403681774,1769473602511,500.0,0.00034595,120]
[403681775,1769473602895,500.0,0.00034595,120]
[403681776,1769473604924,539.55027137,0.00034595,120]
[403681778,1769473619800,500.0,0.00034595,120]
[403681779,1769473620059,500.0,0.00034595,120]
[403681780,1769473621898,500.0,0.00034595,120]
[403681781,1769473622244,500.0,0.00034595,120]
[403681782,1769473629601,500.0,0.00034595,120]
[403681783,1769473629845,500.0,0.00034595,120]
[403681784,1769473633090,-174.28983965,0.00012545,2]
[403681785,1769473633112,-199.87157226,0.00012671,2]
[403681786,1769473633137,-844.35398489,0.00012672,2]
[403681787,1769473636663,500.0,0.00034595,120]
[403681788,1769473636899,500.0,0.00034595,120]
[403681789,1769473640099,-7496.77555172,0.00012672,2]
[403681791,1769473645457,500.0,0.00034595,120]
[403681793,1769473645941,500.0,0.00034595,120]
[403681794,1769473646588,500.0,0.00034595,120]
[403681795,1769473646785,500.0,0.00034595,120]
[403681796,1769473656724,500.0,0.00034595,120]
[403681797,1769473656971,500.0,0.00034595,120]
[403681798,1769473658540,500.0,0.00034595,120]
[403681799,1769473658818,500.0,0.00034595,120]
[403681800,1769473665400,500.0,0.00034595,120]
[403681801,1769473668115,500.0,0.00034595,120]
[403681802,1769473679700,179.37590004,0.00034595,120]
[403681803,1769473681772,500.0,0.00034595,120]
[403681804,1769473682013,500.0,0.00034595,120]
[403681805,1769473695341,244.23681628,0.00034595,120]
[403681806,1769473697792,500.0,0.00034595,120]
[403681807,1769473708562,529.88,0.00034595,120]
[403681833,1769473832478,-182.34115007,0.00012972,2]
[403681834,1769473832488,-112.43681747,0.00013273,2]
[403681835,1769473832499,-387.56318253,0.00013273,2]
[403681836,1769473832508,-500.0,0.00013273,2]
[403681837,1769473832516,-190.52597889,0.00013273,2]
[403681838,1769473832589,-309.47402111,0.00013273,2]
[403681839,1769473832598,-107.69101307,0.00013698,2]
[403682014,1769473838535,-892.30898693,0.00013698,2]
[403682016,1769473838545,-1048.82352545,0.00013698,2]
[403682018,1769473838555,-500.0,0.00013698,2]
[403682019,1769473838567,-500.0,0.00013698,2]
[403682020,1769473838578,-1200.0,0.00013698,2]
[403682021,1769473838587,-1200.0,0.00013698,2]
[403682022,1769473838596,-1000.0,0.00013733,2]
[403682023,1769473838606,-1000.0,0.00013821,2]
[403682024,1769473838615,-1000.0,0.00013821,2]
[403682025,1769473838624,-1000.0,0.00013821,2]
[403682026,1769473838635,-553.64373807,0.00014325,2]
[403682027,1769473838643,-343.46082049,0.00014325,2]
[403682028,1769473838652,-2674.60743027,0.00014325,2]
[403682029,1769473838662,-745.65223616,0.00014325,2]
[403682030,1769473838672,-1000.0,0.00014368,2]
[403682031,1769473838681,-1000.0,0.00014368,2]
[403682032,1769473838691,-1000.0,0.00014368,2]
[403682033,1769473838700,-333.0,0.00014522,2]
[403682034,1769473838709,-500.0,0.0001463,2]
[403682035,1769473838719,-333.0,0.0001474,2]
[403682036,1769473838728,-333.0,0.00014814,2]
[403682037,1769473838737,-574.12855637,0.00014873,2]
[403682038,1769473838747,-215.16255708,0.00014972,2]
[403682039,1769473838756,-1084.73271082,0.00014986,2]
[403682040,1769473838766,-1041.66666667,0.00015055,2]
[403682041,1769473838776,-469.510714,0.00015068,2]
[403682042,1769473838786,-333.0,0.00015119,2]
[403682043,1769473838795,-2000.0,0.00015145,2]
[403682044,1769473838805,-168.0,0.00015148,2]
[403682045,1769473838815,-455.0,0.00015168,2]
[403682046,1769473838825,-150.0,0.00015199,2]
[403682047,1769473838834,-333.0,0.00015242,2]
[403682048,1769473838844,-455.0,0.00015305,2]
[403682049,1769473838853,-150.0,0.00015336,2]
[403682050,1769473838863,-450.84728682,0.00015399,2]
[403682051,1769473838873,-164.93814503,0.00015399,2]
[403682052,1769473838883,-46707.97988435,0.000154,2]
[403682053,1769473838895,-14017.35041091,0.000154,2]
[403682054,1769473838907,-3197.18973189,0.000154,2]
[403682055,1769473838918,-6682.4868,0.000154,2]
[403682056,1769473838929,-35466.75229328,0.000154,2]
[403682057,1769473838941,-332.57768255,0.000154,2]
[403682058,1769473838953,-26004.24378433,0.000154,2]
[403682059,1769473838963,-500.0,0.000154,2]
[403682060,1769473838973,-500.0,0.000154,2]
[403682061,1769473838984,-348.0,0.000154,2]
[403682062,1769473838994,-348.0,0.000154,2]
[403682063,1769473839004,-348.0,0.000154,2]
[403682064,1769473839014,-348.0,0.000154,2]
[403682065,1769473839023,-494.67944626,0.000154,2]
[403682066,1769473839032,-779.0,0.000154,2]
[403682067,1769473839042,-605.09929764,0.000154,2]
[403682068,1769473839052,-102500.30089016,0.000154,2]
[403682069,1769473839198,-1457.0338563,0.000154,2]
[403682104,1769473840795,-44304.11673209,0.000154,2]
[403682107,1769473840812,-17685.0,0.000154,2]
[403682109,1769473840828,-20218.96159278,0.000154,2]
[403682407,1769473843784,-507.49556332,0.000154,2]
[403682415,1769473844019,-2080.75000043,0.000154,2]
[403682416,1769473844030,-7158.34228991,0.000154,2]
[403682417,1769473844040,-3722.3649,0.000154,2]
[403682419,1769473844051,-2455.38369134,0.000154,2]
[403682426,1769473846750,-8718.81736236,0.000154,2]
[403682427,1769473846852,-8810.0,0.000154,2]
[403682428,1769473846864,-106288.81712936,0.000154,2]
[403682429,1769473846873,-317.90563395,0.000154,2]
[403682430,1769473846882,-151.0,0.000154,2]
[403682431,1769473846891,-466.0,0.00015406,2]
[403682432,1769473846900,-466.0,0.00015409,2]
[403682433,1769473846909,-443.0,0.00015416,2]
[403682434,1769473846919,-595.37131296,0.00015421,2]
[403682435,1769473846928,-443.0,0.00015429,2]
[403682436,1769473846937,-333.0,0.00015433,2]
[403682437,1769473846946,-455.0,0.00015442,2]
[403682438,1769473846955,-443.0,0.00015442,2]
[403682440,1769473846964,-500.0,0.00015455,2]
[403682441,1769473846973,-443.0,0.00015455,2]
[403682442,1769473846982,-626.0,0.00015459,2]
[403682443,1769473846991,-170.95332067,0.00015473,2]
[403682444,1769473847000,-443.0,0.00015473,2]
[403682445,1769473847009,-443.0,0.00015481,2]
[403682446,1769473847017,-466.0,0.00015493,2]
[403682447,1769473847026,-466.0,0.00015499,2]
[403682448,1769473847035,-443.0,0.000155,2]
[403682449,1769473847045,-466.0,0.00015518,2]
[403682450,1769473847054,-10000.0,0.00015559,2]
[403682451,1769473847063,-152.920566,0.00015559,2]
[403682452,1769473847071,-292.006585,0.00015559,2]
[403682453,1769473847231,-151.0,0.00015559,2]
[403682454,1769473847240,-301.475783,0.00015559,2]
[403682455,1769473847249,-301.475783,0.00015559,2]
[403682456,1769473847258,-301.475783,0.00015559,2]
[403682457,1769473847267,-301.475783,0.00015559,2]
[403682458,1769473847276,-437.83967,0.00015559,2]
[403682459,1769473847285,-437.83967,0.00015559,2]
[403682460,1769473847294,-437.83967,0.00015559,2]
[403682461,1769473847303,-437.83967,0.00015559,2]
[403682462,1769473847312,-418.0,0.00015566,2]
[403682463,1769473847321,-179.0,0.00015566,2]
[403682464,1769473847330,-455.0,0.00015579,2]
[403682465,1769473847339,-626.0,0.00015631,2]
[403682466,1769473847348,-5000.0,0.0001564,2]
[403682467,1769473847357,-10000.0,0.00015659,2]
[403682468,1769473847366,-600.0,0.00015707,2]
[403682469,1769473847375,-455.0,0.00015716,2]
[403682470,1769473847384,-168.0,0.00015737,2]
[403682471,1769473847393,-250.41858677,0.00015803,2]
[403682472,1769473847403,-333.0,0.00015845,2]
[403682473,1769473847412,-455.0,0.00015853,2]
[403682474,1769473847421,-168.0,0.0001589,2]
[403682475,1769473847431,-617.40005154,0.00015969,2]
[403682476,1769473847440,-455.0,0.0001599,2]
[403682477,1769473847450,-3000.0,0.00016,2]
[403682478,1769473847459,-3000.0,0.0001601,2]
[403682479,1769473847468,-3000.0,0.0001602,2]
[403682480,1769473847477,-3000.0,0.0001603,2]
[403682481,1769473847487,-209.212817,0.0001603,2]
[403682482,1769473847497,-3000.0,0.0001604,2]
[403682483,1769473847506,-3000.0,0.0001605,2]
[403682484,1769473847516,-3000.0,0.0001606,2]
[403682485,1769473847525,-4032.66127,0.0001607,2]
[403682486,1769473847535,-455.0,0.00016127,2]
[403682487,1769473847544,-500.0,0.00016228,2]
[403682488,1769473847554,-455.0,0.00016264,2]
[403682489,1769473847567,-626.0,0.00016284,2]
[403682490,1769473847576,-455.0,0.00016401,2]
[403682491,1769473847585,-250.0,0.00016438,2]
[403682492,1769473847594,-301.475783,0.00016438,2]
[403682493,1769473847605,-301.475783,0.00016438,2]
[403682494,1769473847614,-301.475783,0.00016438,2]
[403682495,1769473847623,-301.475783,0.00016438,2]
[403682496,1769473847634,-437.83967,0.00016438,2]
[403682497,1769473847643,-437.83967,0.00016438,2]
[403682498,1769473847652,-437.83967,0.00016438,2]
[403682499,1769473847661,-437.83967,0.00016438,2]
[403682500,1769473847670,-178.0,0.00016438,3]
[403682501,1769473847679,-151.0,0.00016438,2]
[403682502,1769473847688,-301.393807,0.00016438,2]
[403682503,1769473847697,-301.393807,0.00016438,2]
[403682504,1769473847706,-301.393807,0.00016438,2]
[403682505,1769473847714,-301.393807,0.00016438,2]
[403682506,1769473847724,-301.393807,0.00016438,2]
[403682507,1769473847733,-301.393807,0.00016438,2]
[403682508,1769473847741,-301.393807,0.00016438,2]
[403682509,1769473847751,-301.393807,0.00016438,2]
[403682510,1769473847760,-151.0,0.00016438,2]
[403682511,1769473847769,-151.0,0.00016438,2]
[403682512,1769473847778,-151.0,0.00016438,2]
[403682513,1769473847787,-151.0,0.00016438,2]
[403682514,1769473847796,-1959.52915709,0.00016459,2]
[403682515,1769473847805,-200.47154856,0.00016473,2]
[403682516,1769473847814,-151.0,0.00016473,2]
[403682517,1769473847823,-15000.0,0.000165,2]
[403682518,1769473847833,-151.0,0.000165,2]
[403682519,1769473847842,-586.3424056,0.00016517,2]
[403682520,1769473847851,-455.0,0.00016538,2]
[403682521,1769473847860,-455.0,0.00016675,2]
[403682522,1769473847869,-455.0,0.00016812,2]
[403682523,1769473847878,-363.32072452,0.00016863,2]
[403682524,1769473847888,-455.0,0.00016949,2]
[403682525,1769473847897,-247.98396409,0.00016972,2]
[403682526,1769473847906,-15005.0,0.00017,2]
[403682527,1769473847916,-19257.14969804,0.00017,2]
[403682528,1769473847925,-207.152688,0.00017,2]
[403682529,1769473847935,-301.393807,0.00017,2]
[403682530,1769473847944,-301.393807,0.00017,2]
[403682531,1769473847954,-301.393807,0.00017,2]
[403682532,1769473847963,-301.393807,0.00017,2]
[403682533,1769473847972,-301.475783,0.00017,2]
[403682534,1769473847981,-301.475783,0.00017,2]
[403682535,1769473847990,-301.475783,0.00017,2]
[403682536,1769473847999,-301.475783,0.00017,2]
[403682537,1769473848009,-437.83967,0.00017,2]
[403682538,1769473848018,-437.83967,0.00017,2]
[403682539,1769473848028,-437.83967,0.00017,2]
[403682540,1769473848038,-437.83967,0.00017,2]
[403682541,1769473848046,-151.0,0.00017,2]
[403682542,1769473848056,-151.0,0.00017,2]
[403682543,1769473848065,-160.0,0.0001704,2]
[403682544,1769473848074,-455.0,0.00017086,2]
[403682545,1769473848083,-455.0,0.00017223,2]
[403682546,1769473848092,-720.0,0.00017278,2]
[403682547,1769473848101,-455.0,0.0001736,2]
[403682548,1769473848110,-179.74835231,0.00017484,2]
[403682549,1769473848119,-455.0,0.00017497,2]
[403682550,1769473848128,-1711.61658029,0.000175,3]
[403682551,1769473848138,-300.0,0.000176,2]
[403682552,1769473848147,-455.0,0.00017634,2]
[403682553,1769473848156,-455.0,0.00017771,2]
[403682554,1769473848164,-2399.343257,0.00017771,7]
[403682555,1769473848174,-150.0,0.00017808,2]
[403682556,1769473848182,-354.0,0.0001788,2]
[403682557,1769473848191,-455.0,0.00017908,2]
[403682558,1769473848200,-154.742059,0.00017912,7]
[403682559,1769473848210,-194.200787,0.00017912,7]
[403682560,1769473848219,-20000.0,0.00018,2]
[403682561,1769473848228,-26566.35578582,0.00018,2]
[403682562,1769473848237,-192.66298,0.00018,7]
[403682563,1769473848246,-453.13517,0.00018,7]
[403682564,1769473848256,-294.0468,0.00018,7]
[403682565,1769473848265,-214.806405,0.00018,2]
[403682566,1769473848274,-301.393807,0.00018,2]
[403682567,1769473848284,-301.393807,0.00018,2]
[403682568,1769473848294,-301.393807,0.00018,2]
[403682569,1769473848303,-301.393807,0.00018,2]
[403682570,1769473848312,-301.475783,0.00018,2]
[403682571,1769473848322,-301.475783,0.00018,2]
[403682572,1769473848331,-301.475783,0.00018,2]
[403682573,1769473848340,-301.475783,0.00018,2]
[403682574,1769473848350,-437.83967,0.00018,2]
[403682575,1769473848358,-437.83967,0.00018,2]
[403682576,1769473848367,-437.83967,0.00018,2]
[403682577,1769473848377,-437.83967,0.00018,2]
[403682578,1769473848386,-151.0,0.00018,2]
[403682579,1769473848395,-151.0,0.00018,2]
[403682580,1769473848404,-455.0,0.00018045,2]
[403682581,1769473848413,-729.0,0.00018071,2]
[403682582,1769473848423,-407.0,0.00018073,2]
[403682583,1769473848433,-152.92,0.00018119,2]
[403682584,1769473848443,-252.060228,0.00018147,7]
[403682585,1769473848452,-455.0,0.00018182,2]
[403682586,1769473848461,-729.0,0.00018236,2]
[403682587,1769473848471,-469.0,0.00018259,2]
[403682588,1769473848480,-469.0,0.00018319,2]
[403682589,1769473848489,-758.919981,0.00018356,7]
[403682590,1769473848499,-301.7262602,0.00018356,2]
[403682591,1769473848507,-729.0,0.000184,2]
[403682592,1769473848522,-729.0,0.000184,2]
[403682593,1769473848531,-469.510714,0.00018493,2]
[403682594,1769473848553,-1553.143611,0.000185,2]
[403682595,1769473848570,-418.0,0.00018566,2]
[403682596,1769473848580,-179.0,0.00018566,2]
[403682597,1769473848591,-729.0,0.00018702,2]
[403682598,1769473848601,-168.0,0.0001872,2]
[403682599,1769473848611,-729.0,0.0001872,2]
[403682600,1769473848630,-5000.0,0.00018768,2]
[403682601,1769473848640,-303.10001603,0.000189,2]
[403682602,1769473848650,-6370.34086986,0.000189,2]
[403682603,1769473848668,-1356.61056682,0.000189,2]
[403682604,1769473848678,-303.10001603,0.000189,2]
[403682605,1769473848687,-280.80537111,0.00018972,2]
[403682606,1769473848699,-456.0,0.00019,2]
[403682607,1769473848708,-8310.56332299,0.00019,2]
[403682608,1769473848719,-4132.80713712,0.00019,2]
[403682609,1769473848731,-326.60038864,0.00019,2]
[403682610,1769473848743,-1000.0,0.00019,2]
[403682611,1769473848752,-283.59746887,0.00019005,2]
[403682612,1769473848763,-580.40253113,0.00019005,2]
[403682613,1769473848774,-297.91000828,0.00019089,2]
[403682614,1769473848786,-5.19000775,0.00019089,2]
[403682615,1769473848796,-303.10001603,0.00019089,2]
[403682616,1769473848809,-301.393807,0.00019169,2]
[403682617,1769473848820,-59.34622115,0.00019169,2]
[403682618,1769473848835,-242.04758585,0.00019169,2]
[403682619,1769473848845,-301.393807,0.00019169,2]
[403682620,1769473848854,-25.93860713,0.00019169,2]
[403682621,1769473882853,197.13,0.0003,120]
[403682622,1769474021372,2037.0,0.0003,120]
[403682623,1769474140406,6542.825,0.0003,120]
[403682624,1769474296073,500.0,0.00034566,120]
[403682625,1769474311687,-157.52,0.00012078,2]
[403682626,1769474343189,-4842.48,0.00012078,2]
[403682627,1769474343232,-117.22185071,0.000122,2]
[403682628,1769474343382,-4882.77814929,0.000122,2]
[403682629,1769474343411,-70.6384122,0.00012385,2]
[403682630,1769474343451,-93.17687702,0.00012385,2]
[403682631,1769474343482,-151.0,0.000124,2]
[403682632,1769474343510,-989.97,0.00012569,2]
[403682633,1769474343557,-7718.07,0.00012572,2]
[403682634,1769474346087,-10000.01,0.00012572,2]
[403682635,1769474346221,-10000.01,0.00012572,2]
[403682637,1769474701711,-157.52,0.00011436,2]
[403682638,1769474703307,-297.8959742,0.00011436,2]
[403682639,1769474706075,-295.10211849,0.00011436,2]
[403682640,1769474709672,-199.28788773,0.00011436,2]
[403682641,1769474712409,-158.6,0.00011436,2]
[403682642,1769474716021,-158.6,0.00011436,2]
[403682643,1769474720185,-158.6,0.00011436,2]
[403682644,1769474722367,-151.80242089,0.00011436,2]
[403682645,1769474724476,-158.6,0.00011436,2]
[403682646,1769474727994,-212.10815751,0.00011321,2]
[403682647,1769474729643,-197.55720116,0.00011321,2]
[403682648,1769474732799,-393.19497689,0.00011321,2]
[403682649,1769474736332,-394.97135853,0.00011321,2]
[403682650,1769474737980,-210.09255411,0.00011321,2]
[403682651,1769474739943,-270.28771077,0.00011321,2]
[403682652,1769474776717,-197.02923964,0.00011096,2]
[403682653,1769474849173,-517.87839182,0.00011096,2]
[403682654,1769474849194,-426.1311298,0.00011208,2]
[403682656,1769474959139,-5000.0,0.00010985,2]
[403682657,1769474959158,-5000.0,0.00011096,2]
[403682658,1769474959177,-300.0,0.00011435,2]
[403682659,1769474959195,-604.93954209,0.00011436,2]
[403682660,1769474959214,-164.52474119,0.00011695,2]
[403682661,1769474959234,-170.675,0.00012321,2]
[403682662,1769474959255,-2376.87,0.00012329,2]
[403682663,1769474959274,-1980.72,0.00012329,2]
[403682664,1769474959294,-1650.6,0.00012329,2]
[403682665,1769474959313,-524.1484641,0.00012329,2]
[403682666,1769474973093,-851.3515359,0.00012329,2]
[403682667,1769474973113,-1146.25,0.00012329,2]
[403682668,1769474973133,-955.21,0.00012329,2]
[403682669,1769474973153,-796.01,0.00012329,2]
[403682670,1769474973173,-663.34,0.00012329,2]
[403682671,1769474973192,-663.34,0.00012329,2]
[403682672,1769474973215,-442.23,0.00012329,2]
[403682673,1769474973234,-442.23,0.00012329,2]
[403682674,1769474973253,-294.82,0.00012329,2]
[403682675,1769474973273,-245.68,0.00012329,2]
[403682676,1769474973293,-204.74,0.00012329,2]
[403682677,1769474973313,-170.61,0.00012329,2]
[403682678,1769474973334,-853.09,0.00012329,2]
[403682679,1769474973356,-500.0,0.00012571,2]
[403682680,1769474973376,-500.0,0.00012571,2]
[403682681,1769474973398,-560.3550405,0.00012571,2]
[403682682,1769474973419,-500.0,0.00012571,2]
[403682683,1769474973444,-48095.25247613,0.00012572,2]
[403682684,1769475014550,-5000.0,0.00012205,2]
[403682685,1769475014575,-592.0,0.00012205,2]
[403682686,1769475014599,-151.0,0.000131,2]
[403682687,1769475014624,-194.13919461,0.00013695,2]
[403682688,1769475014648,-315.59310077,0.00013699,2]
[403682689,1769475014672,-151.0,0.000138,2]
[403682690,1769475014696,-151.0,0.000145,2]
[403682691,1769475014720,-151.0,0.000151,2]
[403682692,1769475014745,-553.64373807,0.00015289,2]
[403682693,1769475014770,-250.0,0.00015289,2]
[403682694,1769475014796,-250.0,0.00015289,2]
[403682695,1769475014821,-250.0,0.00015289,2]
[403682696,1769475014846,-509.58400178,0.00015289,2]
[403682697,1769475014870,-250.0,0.00015289,2]
[403682698,1769475014895,-250.0,0.00015289,2]
[403682699,1769475014920,-250.0,0.00015289,2]
[403682700,1769475014946,-668.65185757,0.00015289,2]
[403682701,1769475015129,-500.0,0.00015399,2]
[403682702,1769475015154,-500.0,0.00015399,2]
[403682703,1769475015179,-500.0,0.00015399,2]
[403682704,1769475015203,-500.0,0.00015399,2]
[403682705,1769475015228,-500.0,0.00015399,2]
[403682706,1769475015253,-500.0,0.00015399,2]
[403682707,1769475015278,-500.0,0.00015399,2]
[403682708,1769475015302,-500.0,0.00015399,2]
[403682709,1769475015325,-500.0,0.00015399,2]
[403682710,1769475015349,-526.48485247,0.00015399,2]
[403682711,1769475015371,-500.0,0.000154,2]
[403682712,1769475015396,-500.0,0.000154,2]
[403682713,1769475015420,-1320.32,0.00015559,2]
[403682714,1769475015445,-223.75364802,0.00015695,2]
[403682715,1769475015470,-151.0,0.000158,2]
[403682716,1769475015493,-1000.0,0.0001583,5]
[403682717,1769475015517,-574.12855637,0.00015837,2]
[403682718,1769475015542,-683.30398848,0.00015837,2]
[403682719,1769475015565,-179.0,0.00015943,2]
[403682720,1769475015589,-418.0,0.00015943,2]
[403682721,1769475018002,2986.39706186,0.00012083,2]
[403682737,1769475031578,-2013.60293814,0.00012083,2]
[403682739,1769475031588,-595.37131296,0.00016385,2]
[403682740,1769475031597,-250.0,0.00016438,2]
[403682743,1769475031608,-151.0,0.000165,2]
[403682744,1769475031617,-605.0,0.000168,2]
[403682745,1769475031627,-160.0,0.00016904,3]
[403682746,1769475031636,-375.70192591,0.00016933,2]
[403682748,1769475031646,-151.0,0.000172,2]
[403682750,1769475031655,-570.10348176,0.00017553,2]
[403682751,1769475031665,-253.36810144,0.00017695,2]
[403682752,1769475031674,-151.0,0.000178,2]
[403682753,1769475031683,-179.74835231,0.00018087,2]
[403682754,1769475031692,-151.0,0.000185,2]
[403682755,1769475031702,-303.10001603,0.000189,2]
[403682756,1769475031711,-303.10001603,0.000189,2]
[403682757,1769475031722,-179.0,0.00018943,2]
[403682758,1769475031732,-418.0,0.00018943,2]
[403682759,1769475031741,-1292.84226792,0.00019078,2]
[403682774,1769475037736,-283.32,0.00019078,2]
[403682775,1769475037748,-2669.57438061,0.00019078,2]